[Event "SUI-ch Bundesturnier TP-1 2022"]
[Site "Payerne"]
[Date "2022.05.26"]
[Round "1.1"]
[White "Bauer, Christian"]
[Black "Kupalov, Igor"]
[Result "1-0"]
[ECO "E17"]
[WhiteElo "2596"]
[BlackElo "1952"]
[Annotator "TA"]
[PlyCount "35"]
[EventDate "2022.05.26"]
[EventType "swiss"]
[EventCountry "SUI"]
[SourceTitle "playchess.com"]
[Source "ChessBase"]
[SourceQuality "1"]
[TimeControl "5400+30"]

{[%evp 16,35,17,10,25,33,70,66,95,107,133,124,144,152,532,550,595,583,932,921,879,866]} 1. Nf3 {[%emt 0:00:02]} Nf6 {[%emt 0:00:15]} 2. c4 {[%emt 0:00:10]} b6 {[%emt 0:01:13]} 3. g3 {[%emt 0:01:52]} Bb7 {[%emt 0:00:00]} 4. Bg2 {[%emt 0:00:07]} e6 {[%emt 0:00:00]} 5. O-O {[%emt 0:00:07]} Be7 {[%emt 0:00:00]} 6. d4 {[%emt 0:00:36]} O-O {[%emt 0:00:47]} 7. Re1 {[%emt 0:01:33]} d5 {[%emt 0:00:52]} 8. cxd5 {[%emt 0:02:25]} exd5 {[%emt 0:00:28]} 9. Nc3 {[%emt 0:01:21]} c6 {[%emt 0:04:39] E17: Queen's Indian: 4 g3 Bb7 5 Bg2 Be7.} 10. Bf4 {[%emt 0:02:46] [#]} Bd6 $146 {[%emt 0:03:40]} ({Predecessor:} 10... Na6 11. Ne5 Nc7 12. e4 dxe4 13. Nxe4 Ncd5 14. Nxf6+ Bxf6 15. Bd2 Re8 16. f4 Qd6 17. Kh1 {0-1 (75) Doric,D (2484)-Navarro Lopez Menchero,D (2326) Chess.com INT 2020}) 11. Ne5 {[%emt 0:08:52][%cal Bf3e5,Be5f7,Bf7d6][%mdl 32]} Re8 {[%emt 0:00:57] White is slightly better.} 12. e4 {[%emt 0:11:56]} dxe4 {[%emt 0:11:20]} 13. Qb3 {[%emt 0:06:42]} Qe7 {[%emt 0:19:50]} 14. Nxf7 {[%emt 0:06:14] White is much more active. The black rooks are badly placed.} ({But not} 14. Bxe4 $6 Bxe5 15. Bf5 (15. Bxe5 Nbd7 $14) (15. dxe5 Nxe4 16. Nxe4 c5 $11) 15... Nbd7 $14) 14... Bxf4 {[%emt 0:07:07]} (14... Qxf7 $16 {is tougher.} 15. Bxd6 Nbd7 16. Nxe4 Nxe4 17. Bxe4 (17. Rxe4 Rxe4 18. Bxe4 Qxb3 $16) 17... Qxb3 18. axb3 Nf6) 15. Nd6+ $18 {[%emt 0:07:08][%mdl 64] [#] Discovered Attack, Double Attack. White is clearly winning.} Kf8 {[%emt 0:06:55]} 16. Nxe8 {[%emt 0:00:39]} Bd2 {[%emt 0:02:11]} 17. Nxf6 {[%emt 0:00:15]} gxf6 {[%emt 0:00:41]} 18. Rxe4 {[%emt 0:00:20] White took control after the opening.  Weighted Error Value: White=0.02 (flawless) /Black=1.19} 1-0

[Event "SUI-ch Bundesturnier TP-1 2022"]
[Site "Payerne"]
[Date "2022.05.26"]
[Round "1.2"]
[White "Schoeneshoefer, Adrian"]
[Black "Laurent-Paoli, Pierre"]
[Result "0-1"]
[ECO "B13"]
[WhiteElo "2011"]
[BlackElo "2486"]
[Annotator "TA"]
[PlyCount "108"]
[EventDate "2022.05.26"]
[EventType "swiss"]
[EventCountry "SUI"]
[SourceTitle "playchess.com"]
[Source "ChessBase"]
[SourceQuality "1"]
[TimeControl "5400+30"]

{[%evp 13,108,8,18,3,0,0,0,0,0,-25,-29,-27,-32,-15,-32,-45,-55,-44,-48,-46,-48,-46,-47,-47,-55,-47,-61,-48,-21,-55,-56,-52,-20,-24,-5,-8,-13,-33,-12,-12,-12,-93,-103,-100,-100,-98,-100,-98,-92,-147,-147,-158,-133,-253,-262,-264,-256,-246,-235,-225,-187,-188,-180,-249,-160,-232,-201,-584,-200,-195,-145,-338,-234,-212,-181,-181,-171,-211,-145,-145,-145,-158,-158,-164,-164,-419,-196,-187,-165,-205,-201,-200,-178,-237,-208,-384,-309]} 1. e4 {[%emt 0:00:02]} c6 {[%emt 0:01:20]} 2. d4 {[%emt 0:00:15]} d5 {[%emt 0:00:07]} 3. exd5 {[%emt 0:00:13]} cxd5 {[%emt 0:00:09]} 4. Nf3 {[%emt 0:00:04]} Nc6 {[%emt 0:01:49]} 5. c4 {[%emt 0:00:30]} Nf6 {[%emt 0:01:21]} 6. Nc3 {[%emt 0:01:06]} a6 {[%emt 0:05:31]} 7. cxd5 {[%emt 0:07:10]} Nxd5 {[%emt 0:00:07]} 8. Bc4 {[%emt 0:00:20] B13: Caro-Kann: Exchange Variation and Panov-Botvinnik Attack.} Be6 $1 {[%emt 0:02:12] [#] White must now prevent ...Nxc3. The main line 8...Be6 scores better than 8...e6.} 9. Bb3 {[%emt 0:03:37]} Na5 {[%emt 0:02:42]} 10. Ng5 {[%emt 0:19:51] The position is equal.} Qd7 {[%emt 0:07:00]} 11. O-O {[%emt 0:04:25]} Nxb3 {[%emt 0:03:01] [#]} 12. Qxb3 $146 {[%emt 0:01:20]} ({Predecessor:} 12. axb3 Bg4 13. Qd3 e6 14. Re1 Be7 15. Qg3 Bf5 16. Nf3 O-O 17. Ne5 Qd8 18. Bh6 {0-1 (47) Huschenbeth,N (2620)-Matuszewski,M (2518) Katowice 2019}) 12... Nxc3 {[%emt 0:03:51]} 13. Qxc3 {[%emt 0:00:21]} Bd5 {[%emt 0:02:06]} 14. Nf3 {[%emt 0:05:06]} Rc8 {[%emt 0:12:59]} 15. Qe3 {[%emt 0:00:52]} f6 {[%emt 0:07:24] Against Ne5} 16. Bd2 {[%emt 0:02:41]} e6 {[%emt 0:00:06]} 17. Rfc1 {[%emt 0:00:42]} Bd6 {[%emt 0:01:40]} 18. Rxc8+ {[%emt 0:00:21]} Qxc8 {[%emt 0:00:05]} 19. Ne1 {[%emt 0:00:23]} Kf7 {[%emt 0:12:37]} 20. Nd3 {[%emt 0:01:14]} g5 {[%emt 0:04:21]} 21. Nb4 {[%emt 0:03:33]} Bxb4 {[%emt 0:00:31]} 22. Bxb4 {[%emt 0:00:13][%cal Oh2h4]} Qd7 {[%emt 0:01:37]} 23. a3 {[%emt 0:00:53]} h5 {[%emt 0:02:16][%cal Bh7h5,Bh5g4,Bg4g3][%mdl 32]} 24. Rc1 {[%emt 0:02:06]} Bc6 {[%emt 0:00:36]} 25. f3 {[%emt 0:09:30]} g4 {[%emt 0:01:48]} 26. fxg4 {[%emt 0:01:46]} Rg8 {[%emt 0:04:45]} 27. h3 {[%emt 0:10:10]} (27. Rc5 $1 $11) 27... hxg4 $17 {[%emt 0:00:10]} 28. h4 {[%emt 0:00:27]} Qd5 {[%emt 0:04:26][%csl Gc6][%cal Rd5g2]} 29. Rc2 {[%emt 0:00:41] [#]} g3 $1 {[%emt 0:01:39] aiming for ...Qh5.} 30. Be1 {[%emt 0:00:29]} Qh5 {[%emt 0:01:28]} 31. Rc3 {[%emt 0:01:57]} (31. d5 $142 exd5 32. Qf4) 31... Qxh4 $40 {[%emt 0:01:06][%mdl 128] ( -> ...Qh2+). Black has strong attack. Black is much more active.} 32. Bxg3 {[%emt 0:00:12]} Qg4 {[%emt 0:00:33]} 33. Kf2 {[%emt 0:02:42]} (33. Qd3 $17) 33... Qf5+ $19 {[%emt 0:02:07]} 34. Ke2 {[%emt 0:02:54]} Rg4 {[%emt 0:00:06]} ({Worse is} 34... Bxg2 35. Rc7+ Kg6 36. Bf4 $17) 35. Kd2 {[%emt 0:01:11]} Qd5 {[%emt 0:03:10]} 36. Bf2 {[%emt 0:03:08]} Rxg2 {[%emt 0:02:42]} 37. Rc5 {[%emt 0:00:43]} Qa2 {[%emt 0:01:09]} 38. d5 {[%emt 0:02:17]} (38. Rc2 $142) 38... exd5 {[%emt 0:02:11] Really sharp!} ({And not} 38... Qxb2+ 39. Rc2 Qb5 40. dxc6 bxc6 41. Qd4 $11) 39. Qd4 {[%emt 0:01:59]} (39. Rc2 $17) 39... Qb3 {[%emt 0:01:25] Hoping for ...Qf3.} 40. Ke2 {[%emt 0:02:30] Inhibits Qf3+.} (40. Rc2 {is tougher.}) 40... Rg5 $2 {[%emt 0:01:10]} (40... Qh3 41. Qf4 Bb5+ 42. Rxb5 axb5 43. Qc7+ Kg6 44. Qc2+ Kg7 45. Qc7+ Kg6 46. Qc2+ Qf5) 41. Kd2 {[%emt 0:01:00]} Re5 {[%emt 0:00:36]} (41... Qf3 $19 {Threatens to win with ...Rg2.} 42. Rc3 Qe4 43. Qxe4 dxe4) 42. Kc1 $2 {[%emt 0:00:42] Loses the game.} (42. Qc3 $17 {keeps fighting.} Qxc3+ 43. Rxc3) 42... Re4 {[%emt 0:00:41]} 43. Qc3 {[%emt 0:02:06]} Qxc3+ {[%emt 0:00:07]} 44. Rxc3 {[%emt 0:00:09][%mdl 4096] Endgame KRB-KRB} Ke6 {[%emt 0:00:21]} 45. Kd2 {[%emt 0:00:09]} Bb5 {[%emt 0:01:18] ...Re2+ is the strong threat.} 46. Re3 {[%emt 0:00:13] Inhibits Re2+.} Ke5 {[%emt 0:00:56]} 47. Bg3+ {[%emt 0:00:37]} Kf5 {[%emt 0:00:20]} 48. Bf2 {[%emt 0:02:08]} d4 {[%emt 0:01:17]} 49. Rf3+ {[%emt 0:00:47]} (49. Rxe4 {was called for.} Kxe4 50. Bh4) 49... Ke5 {[%emt 0:00:12]} (49... Kg4 $142 50. Rxf6 Re2+ 51. Kd1 d3) 50. Bg3+ {[%emt 0:01:19]} Ke6 {[%emt 0:00:15]} 51. b3 {[%emt 0:00:21]} Re2+ {[%emt 0:00:50]} 52. Kc1 {[%emt 0:00:08]} f5 {[%emt 0:00:43]} 53. a4 {[%emt 0:00:46]} (53. Bb8 $142) 53... Bc6 {[%emt 0:00:20]} 54. Rf4 {[%emt 0:00:08]} (54. Rd3) 54... Be4 {[%emt 0:00:15] Weighted Error Value: White=0.38/Black=0.24 (precise)} 0-1

[Event "SUI-ch Bundesturnier TP-1 2022"]
[Site "Payerne"]
[Date "2022.05.26"]
[Round "1.3"]
[White "Gschnitzer, Adrian"]
[Black "Yersin, Franck"]
[Result "1-0"]
[ECO "B38"]
[WhiteElo "2441"]
[BlackElo "1832"]
[Annotator "TA"]
[PlyCount "53"]
[EventDate "2022.05.26"]
[EventType "swiss"]
[EventCountry "SUI"]
[SourceTitle "playchess.com"]
[Source "ChessBase"]
[SourceQuality "1"]
[TimeControl "5400+30"]

{[%evp 13,53,52,73,60,59,45,60,50,65,60,66,53,60,61,95,96,112,89,135,138,139,120,156,146,196,191,202,227,212,134,120,99,130,83,96,73,567,577,647,555,543,534]} 1. e4 {[%emt 0:00:03]} c5 {[%emt 0:00:04]} 2. Nf3 {[%emt 0:00:12]} Nc6 {[%emt 0:00:04]} 3. d4 {[%emt 0:00:47]} cxd4 {[%emt 0:00:04]} 4. Nxd4 {[%emt 0:00:07]} g6 {[%emt 0:00:04]} 5. c4 {[%emt 0:00:13]} Bg7 {[%emt 0:00:05]} 6. Be3 {[%emt 0:00:10]} Nh6 {[%emt 0:00:05] 6...Qb6 is a critical line.} 7. Nc3 {[%emt 0:00:55]} d6 {[%emt 0:00:10]} 8. h3 {[%emt 0:01:56] Prevents Ng4. B38: Sicilian: Maroczy Bind with 5...Bg7 and 7...0-0.} f5 {[%emt 0:00:09]} 9. exf5 {[%emt 0:05:27]} Nxf5 {[%emt 0:01:11]} 10. Nxf5 {[%emt 0:00:26] White is slightly better.} Bxf5 {[%emt 0:00:48]} 11. Be2 {[%emt 0:02:18]} O-O {[%emt 0:07:22]} 12. O-O {[%emt 0:00:22] [#]} Rc8 $146 {[%emt 0:00:22]} ({Predecessor:} 12... Qa5 13. Rc1 Rac8 14. a3 Qe5 15. Bg4 Bxg4 16. Qxg4 Qf5 17. Qe2 Rf7 18. Nd5 e6 {0-1 (49) Petukhov,D (2392)-Muromtsev,A (2272) Saratov 2009}) 13. Rc1 {[%emt 0:00:36]} b6 {[%emt 0:23:38]} 14. Qd2 {[%emt 0:01:44]} Ne5 {[%emt 0:04:57]} 15. Nb5 {[%emt 0:09:26]} Be6 {[%emt 0:06:02]} ({Black should try} 15... a6) 16. b3 $16 {[%emt 0:01:59]} Qd7 {[%emt 0:12:52]} 17. Nd4 {[%emt 0:03:10]} Rcd8 {[%emt 0:10:31]} 18. f4 {[%emt 0:02:56]} Nf7 {[%emt 0:06:43]} (18... Nc6 $16) 19. Bf3 $18 {[%emt 0:01:08]} Bxd4 {[%emt 0:09:05]} 20. Bxd4 {[%emt 0:00:31]} ({Don't take} 20. Qxd4 Qc8 21. Rce1 Bf5) 20... Bf5 {[%emt 0:00:05]} 21. Bd5 {[%emt 0:04:57] A strong pair of Bishops.} e6 {[%emt 0:01:26] [#]} 22. Bb2 $1 {[%emt 0:01:59] White is much more active.} exd5 {[%emt 0:02:10]} 23. Qd4 {[%emt 0:00:52]} (23. Rfe1 $142 {Black must now prevent Qd4.} Rfe8 24. Qd4) 23... Ne5 $16 {[%emt 0:00:04]} 24. fxe5 $40 {[%emt 0:00:25][%mdl 128] White wants a kill.} Qg7 $2 {[%emt 0:00:05][%mdl 8192]} (24... dxe5 $16 {is a better chance.} 25. Qxe5 d4) 25. Qxd5+ $18 {[%emt 0:00:43] White is clearly winning.} Qf7 {[%emt 0:04:55]} 26. e6 {[%emt 0:00:06]} Qxe6 {[%emt 0:00:54] [#]} 27. Rxf5 $1 {[%emt 0:00:08][%mdl 512] Weighted Error Value: White=0.17 (very precise) /Black=0.48} 1-0

[Event "SUI-ch Bundesturnier TP-1 2022"]
[Site "Payerne"]
[Date "2022.05.26"]
[Round "1.4"]
[White "Gut, Lionel"]
[Black "Willems, Niels"]
[Result "1/2-1/2"]
[ECO "A58"]
[WhiteElo "1962"]
[BlackElo "2338"]
[Annotator "TA"]
[PlyCount "173"]
[EventDate "2022.05.26"]
[EventType "swiss"]
[EventCountry "SUI"]
[SourceTitle "playchess.com"]
[Source "ChessBase"]
[SourceQuality "1"]
[TimeControl "5400+30"]

{[%evp 9,173,30,35,43,43,34,40,34,44,41,28,0,14,6,27,-20,-8,-31,-23,-27,-20,-36,-13,-24,-17,-35,-23,-22,-14,-18,22,12,6,4,6,6,14,20,52,39,30,35,59,32,31,0,0,0,0,-19,-18,-49,0,-50,-50,-50,-50,-50,-50,-50,-50,-50,-50,-50,-50,-50,-50,-66,-50,-66,-66,-66,-66,-66,-58,-66,-44,-75,-75,-83,-43,-83,-43,-43,-43,-44,-44,-76,-76,-83,-83,-83,-27,-83,-83,-83,-83,-83,-83,-83,0,0,0,-83,-83,-83,-83,-83,-83,-83,-83,-83,-83,-83,-83,-83,-83,-83,-83,-83,-83,-83,-76,-83,-83,-83,0,-76,-76,-83,-83,-83,-83,-83,-83,-83,-83,-83,-83,-83,0,0,0,0,0,0,0,0,0,0,0,0,0,0,0,0,0,0,0,0,0,0,0,0,0,0]} 1. d4 {[%emt 0:00:03]} Nf6 {[%emt 0:00:03]} 2. c4 {[%emt 0:00:10][%cal Bc2c4,Bc4b5,Bb5a6][%mdl 32]} c5 {[%emt 0:00:06]} 3. d5 {[%emt 0:00:07]} b5 {[%emt 0:00:10]} 4. cxb5 {[%emt 0:00:28]} a6 {[%emt 0:00:02]} 5. bxa6 {[%emt 0:00:34]} g6 {[%emt 0:00:09]} 6. Nc3 {[%emt 0:01:17] A58: Benko/Volga Gambit: Lines with 5 bxa6.} Bg7 {[%emt 0:00:11]} 7. e4 {[%emt 0:06:12] e5 is the strong threat.} O-O {[%emt 0:00:20]} 8. Nf3 {[%emt 0:07:41] White is slightly better.} Qa5 {[%emt 0:00:41]} 9. Bd2 {[%emt 0:05:09]} Bxa6 {[%emt 0:00:14]} 10. Bxa6 {[%emt 0:00:41]} Qxa6 {[%emt 0:00:02]} 11. Qe2 {[%emt 0:03:32]} d6 {[%emt 0:00:08]} 12. Qxa6 {[%emt 0:08:00]} (12. a4 $142) 12... Nxa6 $11 {[%emt 0:00:07][%cal Bb8a6,Ba6b4,Bb4c2][%mdl 32]} 13. O-O {[%emt 0:01:14] 13.Ke2 is the fancy move.} Rfb8 {[%emt 0:02:55][%mdl 1024] Black has compensation.} 14. Rab1 {[%emt 0:05:12]} Nb4 {[%emt 0:06:25]} 15. a4 {[%emt 0:06:07]} Rb7 {[%emt 0:07:24]} 16. Bg5 {[%emt 0:30:05]} h6 {[%emt 0:14:31] [#]} 17. Bxf6 $146 {[%emt 0:04:16]} ({Predecessor:} 17. Bh4 Nh5 18. Nd2 Nd3 19. Nc4 g5 20. Bg3 Rb4 21. Ne3 Nxb2 22. Nc2 Bxc3 23. Nxb4 cxb4 {0-1 (23) Keyser,R (1863)-Kuberczyk,C (2179) Hamburg 2017}) 17... Bxf6 {[%emt 0:00:05]} 18. Rfd1 {[%emt 0:01:05] Prevents Nd3.} Nc2 {[%emt 0:03:06]} 19. e5 {[%emt 0:01:43]} Bg7 {[%emt 0:09:18]} 20. exd6 {[%emt 0:05:46]} exd6 {[%emt 0:01:57]} 21. Nb5 {[%emt 0:00:50]} Rxa4 {[%emt 0:00:48]} 22. Nxd6 {[%emt 0:01:01]} Rb8 {[%emt 0:07:28]} 23. b3 {[%emt 0:02:48]} Ra2 {[%emt 0:00:01]} 24. Nc4 {[%emt 0:00:31]} (24. Ne4 $5 {[%cal Rd5d6]}) 24... Nd4 {[%emt 0:00:53]} 25. d6 {[%emt 0:01:21]} Bf6 {[%emt 0:09:11]} 26. Nxd4 {[%emt 0:00:59]} Bxd4 {[%emt 0:00:24]} 27. b4 {[%emt 0:02:51]} Bxf2+ {[%emt 0:03:25]} 28. Kf1 {[%emt 0:00:07]} cxb4 {[%emt 0:00:36][%cal Bc5b4,Bb4b3][%mdl 32]} 29. d7 {[%emt 0:00:46]} Bh4 {[%emt 0:00:01]} 30. Ne5 {[%emt 0:00:56]} Rc2 {[%emt 0:02:34] Inhibits Nc6.} (30... Rf2+ $1 $15 {was preferrable.} 31. Kg1 Rc2) 31. Rdc1 {[%emt 0:01:18]} (31. Rd4 $11 Be7 32. Re4) 31... Rxc1+ $15 {[%emt 0:01:14]} 32. Rxc1 {[%emt 0:00:01][%mdl 4096] Endgame Threatens to win with Rc8+. KRB-KRN} Rd8 {[%emt 0:00:06]} 33. Rd1 {[%emt 0:02:00]} b3 $1 {[%emt 0:01:54] Hoping for ...b2.} 34. Nc6 {[%emt 0:00:12]} Ra8 {[%emt 0:00:06] Strongly threatening ...b2.} 35. Rb1 {[%emt 0:00:42]} Ra6 $1 {[%emt 0:00:41]} 36. d8=Q+ {[%emt 0:00:16]} Bxd8 {[%emt 0:00:01]} 37. Nxd8 {[%emt 0:00:02] aiming for Nb7. KRN-KR} Rb6 {[%emt 0:00:10] Inhibits Nb7.} 38. Kf2 {[%emt 0:00:56]} Kf8 {[%emt 0:00:21]} 39. Kf3 {[%emt 0:00:10]} Ke7 {[%emt 0:00:14]} (39... h5 {looks sharper.} 40. h4 b2 41. g3 Ke7) 40. Nc6+ {[%emt 0:00:06]} Rxc6 {[%emt 0:00:01]} 41. Rxb3 {[%emt 0:00:06] KR-KR} Kf6 {[%emt 0:00:49]} 42. Ra3 {[%emt 0:00:16]} Kg5 {[%emt 0:00:32]} 43. Kg3 {[%emt 0:00:14]} Rc4 {[%emt 0:00:37]} 44. h3 {[%emt 0:00:19]} f5 {[%emt 0:00:21]} 45. Rb3 {[%emt 0:00:29]} Kh5 {[%emt 0:00:40]} 46. Rb5 {[%emt 0:01:18]} Rc3+ {[%emt 0:01:46]} 47. Kh2 {[%emt 0:00:15]} Re3 {[%emt 0:00:36]} 48. Rc5 {[%emt 0:00:14]} Kg5 {[%emt 0:01:29]} 49. Rb5 {[%emt 0:00:04]} h5 {[%emt 0:00:30]} 50. Rc5 {[%emt 0:00:24]} Kf4 {[%emt 0:00:27]} (50... Ra3 $17 51. Rc6 h4) 51. Rc4+ {[%emt 0:00:21]} (51. h4 $1 $11) 51... Re4 $17 {[%emt 0:00:09]} 52. Rc3 {[%emt 0:00:04]} h4 {[%emt 0:00:23]} 53. Rc8 {[%emt 0:00:53]} g5 {[%emt 0:02:24]} 54. Rh8 {[%emt 0:00:56]} Ke3 {[%emt 0:02:09]} (54... Rd4 $17 55. Ra8 Rd1) 55. Rg8 $11 {[%emt 0:00:06]} Kf4 {[%emt 0:03:12]} (55... g4 $11) 56. Rh8 $1 $17 {[%emt 0:00:19]} Re2 {[%emt 0:01:03]} 57. Rh7 {[%emt 0:00:48]} Re5 {[%emt 0:09:29]} 58. Rg7 {[%emt 0:02:51]} Rd5 {[%emt 0:00:24]} 59. Rg8 {[%emt 0:00:30]} Rd1 {[%emt 0:00:24]} 60. Rh8 {[%emt 0:00:35]} Ke5 {[%emt 0:01:02]} 61. Re8+ {[%emt 0:01:11]} Kf6 $1 {[%emt 0:00:01]} 62. Rf8+ {[%emt 0:00:22] [#]} Kg6 $1 {[%emt 0:00:01]} 63. Rg8+ {[%emt 0:00:16] [#]} Kh6 $1 {[%emt 0:00:01]} 64. Rf8 {[%emt 0:00:52]} Rf1 {[%emt 0:00:43]} 65. Rg8 {[%emt 0:00:24]} Kh5 {[%emt 0:00:33]} 66. Rg7 {[%emt 0:00:46]} Re1 {[%emt 0:00:51]} 67. Rg8 {[%emt 0:00:34]} Rd1 {[%emt 0:01:49]} (67... Kh6 $17 68. Rf8 Rf1) 68. Rf8 {[%emt 0:00:37]} (68. Rh8+ $1 $11 {was the only way to keep the balance.} Kg6 69. Rc8) 68... Rf1 {[%emt 0:00:31]} 69. Rg8 {[%emt 0:00:08]} Kh6 {[%emt 0:00:22]} 70. Rh8+ {[%emt 0:00:53]} Kg7 {[%emt 0:00:05]} 71. Rh5 {[%emt 0:00:15]} Kg6 {[%emt 0:01:24]} 72. Rh8 {[%emt 0:00:05]} Rc1 {[%emt 0:00:01]} 73. Rg8+ {[%emt 0:00:15]} Kh6 {[%emt 0:00:03]} 74. Rf8 {[%emt 0:00:12]} g4 {[%emt 0:01:25]} (74... Rc5 $17 75. Kg1 Kg7) 75. hxg4 $11 {[%emt 0:00:12] The position is equal.} fxg4 {[%emt 0:00:01]} 76. Rh8+ {[%emt 0:00:08]} Kg5 {[%emt 0:00:07]} 77. Rg8+ {[%emt 0:00:04]} Kf5 {[%emt 0:00:04] ( -> ...g3+)} 78. Rf8+ {[%emt 0:00:09]} Ke6 {[%emt 0:02:06]} 79. Re8+ {[%emt 0:00:12]} Kf7 {[%emt 0:00:17]} 80. Rh8 {[%emt 0:00:18]} g3+ {[%emt 0:02:25]} 81. Kh3 {[%emt 0:00:04]} Rh1+ {[%emt 0:00:09]} 82. Kg4 {[%emt 0:00:03]} Rh2 {[%emt 0:00:13]} 83. Rxh4 {[%emt 0:00:13]} Rxg2 {[%emt 0:00:02]} 84. Kf3 {[%emt 0:00:07]} Rg1 {[%emt 0:00:06]} 85. Rg4 {[%emt 0:00:07]} g2 {[%emt 0:00:06]} 86. Rxg2 {[%emt 0:00:03]} Rxg2 {[%emt 0:00:02]} 87. Kxg2 {[%emt 0:00:07] Weighted Error Value: White=0.09 (flawless) /Black=0.09 (flawless)} 1/2-1/2

[Event "SUI-ch Bundesturnier TP-1 2022"]
[Site "Payerne"]
[Date "2022.05.26"]
[Round "1.5"]
[White "Joie, Sebastien"]
[Black "Delmonico, Nils"]
[Result "1-0"]
[ECO "D32"]
[WhiteElo "2376"]
[BlackElo "1955"]
[Annotator "TA"]
[PlyCount "45"]
[EventDate "2022.05.26"]
[EventType "swiss"]
[EventCountry "SUI"]
[SourceTitle "playchess.com"]
[Source "ChessBase"]
[SourceQuality "1"]
[TimeControl "5400+30"]

{[%evp 25,45,36,31,33,137,29,27,0,31,17,20,23,50,22,52,49,93,90,204,185,358,345]} 1. c4 {[%emt 0:01:19]} e6 {[%emt 0:02:18]} 2. Nc3 {[%emt 0:00:36]} d5 {[%emt 0:00:27]} 3. e3 {[%emt 0:00:38]} Nf6 {[%emt 0:00:48]} 4. Nf3 {[%emt 0:00:22]} Be7 {[%emt 0:01:16]} 5. b3 {[%emt 0:00:50]} O-O {[%emt 0:00:25]} 6. Bb2 {[%emt 0:00:05]} c5 {[%emt 0:03:48]} 7. cxd5 {[%emt 0:00:11]} exd5 {[%emt 0:00:28]} 8. d4 {[%emt 0:01:20]} Nc6 {[%emt 0:00:34]} 9. Be2 {[%emt 0:00:36]} Be6 {[%emt 0:02:34]} 10. O-O {[%emt 0:00:47]} Rc8 {[%emt 0:03:19]} 11. Rc1 {[%emt 0:03:36]} Ne4 {[%emt 0:07:32]} 12. dxc5 {[%emt 0:00:29]} Nxc5 {[%emt 0:01:38]} 13. Nb5 {[%emt 0:06:09]} Ne4 {[%emt 0:09:55]} 14. Nfd4 {[%emt 0:08:36] D32: Tarrasch Defence: Sidelines and lines without g3.} Qa5 {[%emt 0:08:51] [#]} ({Black should play} 14... Bd7 $14) 15. a3 $146 {[%emt 0:08:29]} (15. Nxe6 $16 fxe6 {[#]} 16. Bg4 $1) ({Predecessor:} 15. Nxe6 fxe6 16. a3 Bf6 17. Bxf6 Rxf6 18. b4 Qd8 19. Bd3 a6 20. Bxe4 axb5 21. Bd3 Qb6 {1-0 (42) Cvek,R (2517)-Oganian,M (2370) Pardubice 2015}) 15... Nxd4 $11 {[%emt 0:06:10]} 16. Bxd4 {[%emt 0:02:30] White has an edge.} ({Reject} 16. Qxd4 Bf6 17. Rxc8 Rxc8 18. Qxa7 Qxa7 19. Nxa7 Bxb2 $17) 16... a6 {[%emt 0:06:27]} 17. b4 {[%emt 0:00:29][%cal Bb3b4,Bb4a5][%mdl 32]} Qd8 {[%emt 0:00:20]} 18. Nc3 {[%emt 0:00:40]} b5 {[%emt 0:07:34]} 19. Bf3 {[%emt 0:09:47]} Nxc3 {[%emt 0:02:56]} 20. Rxc3 {[%emt 0:00:41]} a5 {[%emt 0:04:12]} 21. Rxc8 {[%emt 0:00:41] White is more active.} Qxc8 {[%emt 0:00:07]} (21... Bxc8 $16 22. Be2 Bf5) 22. bxa5 $18 {[%emt 0:02:14]} Bxa3 $2 {[%emt 0:02:48] [#]} (22... Qa6 23. Qa1 Qxa5) 23. Qa1 $1 {[%emt 0:00:16][%csl LRa3,LRg7] Weighted Error Value: White=0.25 (precise) /Black=0.52} 1-0

[Event "SUI-ch Bundesturnier TP-1 2022"]
[Site "Payerne"]
[Date "2022.05.26"]
[Round "1.6"]
[White "Gemelli, Romain"]
[Black "Stijve, Theo"]
[Result "0-1"]
[ECO "D85"]
[WhiteElo "2030"]
[BlackElo "2341"]
[Annotator "TA"]
[PlyCount "42"]
[EventDate "2022.05.26"]
[EventType "swiss"]
[EventCountry "SUI"]
[SourceTitle "playchess.com"]
[Source "ChessBase"]
[SourceQuality "1"]
[TimeControl "5400+30"]

{[%evp 11,42,25,29,14,1,0,0,20,0,16,18,-10,0,-68,-60,-138,-94,-120,-117,-100,-85,-258,-236,-485,-482,-718,-715,-714,-712,-983,-972,-955,-595]} 1. d4 {[%emt 0:00:05]} Nf6 {[%emt 0:00:05]} 2. c4 {[%emt 0:00:14]} g6 {[%emt 0:00:04]} 3. Nc3 {[%emt 0:00:06]} d5 {[%emt 0:00:06]} 4. cxd5 {[%emt 0:00:06]} Nxd5 {[%emt 0:00:07]} 5. e4 {[%emt 0:00:06]} Nxc3 {[%emt 0:00:05]} 6. bxc3 {[%emt 0:00:06]} Bg7 {[%emt 0:00:07][%cal Oc7c5]} 7. Bg5 {[%emt 0:00:13] Recently 7.Nf3 got a lot of attention. D85: Exchange Grünfeld: Unusual White 7th moves and lines with 7 Nf3.} c5 {[%emt 0:00:08][%cal Rc5d4]} 8. Rc1 {[%emt 0:00:08]} O-O {[%emt 0:00:08][%cal Rc5d4]} 9. Nf3 {[%emt 0:02:28] The position is equal.} Bg4 {[%emt 0:00:36]} 10. d5 {[%emt 0:00:55]} Qd6 {[%emt 0:00:13]} 11. h3 {[%emt 0:18:38]} Bxf3 {[%emt 0:01:22]} 12. gxf3 {[%emt 0:00:08] [#]} ({White should play} 12. Qxf3 $11 Nd7 13. Bb5) 12... f5 $146 {[%emt 0:05:58]} ({Predecessor:} 12... Nd7 13. Qd2 e6 14. Be2 exd5 15. Qxd5 Qxd5 16. exd5 Rfe8 17. Be3 Re5 18. c4 Rae8 {1-0 (49) Koller,H (2120)-Heigerer,S (2037) Neumarkt am Wallersee 2016}) 13. Qb3 {[%emt 0:07:27]} (13. Bc4 $15 Rf7 14. Be3) 13... Nd7 {[%emt 0:09:03] Threatens to win with ...fxe4.} 14. Be2 {[%emt 0:30:14][%cal Og5e7]} ({Wrong is} 14. Qxb7 $2 fxe4 15. Be3 (15. fxe4 $2 Qe5 $19) 15... exf3 $19) 14... fxe4 {[%emt 0:08:29]} 15. fxe4 {[%emt 0:14:03]} Qe5 {[%emt 0:01:11][%csl LRe4,LRg5]} 16. Bxe7 {[%emt 0:04:37] [#] This costs White the game.} c4 $1 $19 {[%emt 0:09:49]} (16... Qxe7 $2 17. d6+ Qf7 18. Bc4 $18) ({Inferior is} 16... Qxe4 17. Bxf8 Qxh1+ 18. Kd2 Qxh3 19. Bxg7 $17) 17. Qb4 {[%emt 0:10:21]} (17. Qxc4 Qxe7 18. d6+ Qf7 19. O-O) 17... Qxe4 {[%emt 0:01:21] Black is clearly winning.} 18. Bxf8 {[%emt 0:02:26]} (18. O-O $142 Qxe2 19. Bxf8 Rxf8 20. Rce1) 18... Qxh1+ {[%emt 0:05:31]} 19. Kd2 {[%emt 0:00:08]} Qxd5+ {[%emt 0:00:07]} 20. Ke1 {[%emt 0:00:05]} Re8 {[%emt 0:01:41]} ({Not} 20... Bxf8 21. Bxc4 Bxb4 22. Bxd5+ Kh8 23. cxb4 $14) 21. Bxg7 {[%emt 0:02:26]} Nc5 {[%emt 0:06:17] Weighted Error Value: White=0.93/Black=0.03 (flawless)} 0-1